bitfinex-derivatives/quotes_BTCF0:USTF0_20251202
["timestamp","ask_amount","ask_price","bid_price","bid_amount"]
[1764688224839,0.3608,90201.0,90200.0,0.67851]
[1764688225035,0.3608,90201.0,90193.0,0.3608]
[1764688225340,0.00016635,90205.0,90193.0,1.03931]
[1764688225541,0.00016635,90205.0,90204.0,0.33149]
[1764688225730,0.00016635,90205.0,90204.0,0.67851]
[1764688226227,0.00016635,90205.0,90204.0,1.17851]
[1764688227137,1.06304635,90205.0,90204.0,0.45]
[1764688227324,1.06304635,90205.0,90204.0,0.4]
[1764688227525,1.46404635,90205.0,90187.0,0.00016635]
[1764688227726,0.3608,90193.0,90187.0,0.00016635]
[1764688227936,0.70208,90188.0,90187.0,0.00016635]
[1764688228439,0.70208,90188.0,90168.0,0.3608]
[1764688228640,0.3608,90184.0,90168.0,0.3608]
[1764688229031,0.3608,90184.0,90176.0,0.3608]
[1764688229432,0.3608,90184.0,90171.0,0.00016635]
[1764688229636,0.3608,90176.0,90171.0,0.00016635]
[1764688230235,0.70208,90172.0,90171.0,0.00016635]
[1764688230441,0.70208,90167.0,90166.0,0.00011083]
[1764688230739,0.70208,90131.0,90130.0,0.3608]
[1764688230934,0.70208,90131.0,90112.0,0.3608]
[1764688231134,0.3608,90128.0,90112.0,0.3608]
[1764688231331,0.15527409,90130.0,90112.0,0.3597]
[1764688231734,0.3608,90118.0,90108.0,0.00010754]
[1764688231932,0.3608,90118.0,90086.0,0.00027751]
[1764688231933,1.06288,90109.0,90086.0,0.00027751]
[1764688232247,0.3608,90099.0,90086.0,0.00027751]
[1764688232435,0.3608,90100.0,90086.0,0.00027751]
[1764688232639,0.51607409,90104.0,90086.0,0.00027751]
[1764688233032,0.00010993,90103.0,90086.0,0.00027751]
[1764688233233,0.00010993,90102.0,90086.0,0.00027751]
[1764688233440,0.007,90099.0,90086.0,0.00127751]
[1764688233637,0.00010993,90098.0,90097.0,0.33149]
[1764688233836,0.00010993,90098.0,90097.0,0.67404]
[1764688234434,0.001,90103.0,90102.0,0.6958181]
[1764688235041,0.008,90103.0,90102.0,0.3536481]
[1764688235232,0.008,90103.0,90102.0,0.6958181]
[1764688235544,0.00016644,90107.0,90106.0,0.68472]
[1764688235745,0.00016644,90107.0,90106.0,1.04552]
[1764688236140,0.3608,90133.0,90115.0,0.0110964]
[1764688236336,0.15527409,90140.0,90126.0,0.3608]
[1764688236540,0.44958335,90143.0,90131.0,0.0110945]
[1764688236845,0.15527409,90160.0,90138.0,0.3608]
[1764688237034,0.00016644,90158.0,90150.0,0.3608]
[1764688237233,0.00016644,90158.0,90157.0,0.68472]
[1764688237646,0.00016644,90158.0,90150.0,0.3718922]
[1764688237647,0.00016644,90158.0,90150.0,0.3608]
[1764688238242,0.00016644,90158.0,90157.0,0.34217]
[1764688238544,0.00016644,90158.0,90157.0,0.68472]
[1764688238936,0.00016644,90158.0,90150.0,0.3608]
[1764688239137,1.0443,90151.0,90140.0,0.00016644]
[1764688239333,0.3608,90151.0,90140.0,0.00016644]
[1764688239536,0.15527409,90150.0,90140.0,0.00016644]
[1764688240161,0.6835,90141.0,90140.0,0.00016644]
[1764688240333,0.6835,90141.0,90140.0,0.00116644]
[1764688240532,0.6835,90141.0,90128.0,0.3608]
[1764688240740,0.15527409,90140.0,90126.0,0.3608]
[1764688241935,0.15527409,90140.0,90118.0,0.3608]
[1764688241936,0.3608,90128.0,90118.0,0.3608]
[1764688242735,0.3608,90128.0,90126.0,0.001]
[1764688243135,0.3608,90128.0,90118.0,0.3608]
[1764688243344,0.3608,90128.0,90118.0,0.3628]
[1764688244647,0.15527409,90130.0,90126.0,0.002]
[1764688245041,0.33023,90127.0,90126.0,0.002]
[1764688245242,0.3608,90133.0,90118.0,0.3738962]
[1764688245547,0.15527409,90130.0,90118.0,0.3628]
[1764688245855,0.15527409,90130.0,90126.0,0.002]
[1764688246348,0.001,90128.0,90126.0,0.002]
[1764688246641,0.001,90128.0,90127.0,0.68472]
[1764688247042,0.001,90128.0,90126.0,0.002]
[1764688247245,0.001,90128.0,90127.0,0.6958151]
[1764688247545,0.00016644,90142.0,90133.0,0.0110942]
[1764688247746,0.00016644,90142.0,90135.0,0.3608]
[1764688248348,0.00016644,90142.0,90118.0,0.001]
[1764688248349,0.6835,90136.0,90118.0,0.3608]
[1764688248545,0.15527409,90130.0,90127.0,0.003]
[1764688248749,0.33023,90128.0,90127.0,0.003]
[1764688249047,0.33023,90128.0,90101.0,0.3608]
[1764688249243,0.15527409,90111.0,90107.0,0.0110975]
[1764688249548,0.00016644,90124.0,90110.0,0.3608]
[1764688249941,0.3608,90118.0,90110.0,0.3608]
[1764688250143,0.15527409,90120.0,90110.0,0.3608]
[1764688250144,0.33023,90111.0,90110.0,0.3608]
[1764688250552,0.33023,90111.0,90110.0,0.3108]
[1764688250853,0.33023,90111.0,90081.0,0.5519806]
[1764688250854,0.6835,90098.0,90086.0,0.36107751]
[1764688251039,1.0443,90098.0,90086.0,0.36107751]
[1764688251439,0.15527409,90096.0,90095.0,1.04552]
[1764688251636,0.00016644,90101.0,90100.0,0.34217]
[1764688251838,0.00016644,90101.0,90100.0,0.68472]
[1764688252042,0.3608,90129.0,90101.0,0.0110982]
[1764688252245,0.00010529,90128.0,90113.0,0.0110967]
[1764688252444,0.15527409,90120.0,90097.0,0.0110987]
[1764688252634,0.15527409,90110.0,90095.0,0.005]
[1764688252841,0.15527409,90110.0,90099.0,0.0110984]
[1764688253037,8.027e-05,90109.0,90100.0,0.0110984]
[1764688253241,8.027e-05,90109.0,90108.0,0.68472]
[1764688254546,8.027e-05,90109.0,90108.0,0.004]
[1764688255651,8.027e-05,90109.0,90096.0,0.3608]
[1764688255951,8.027e-05,90109.0,90108.0,0.003]
[1764688257242,0.15527409,90110.0,90108.0,0.003]
[1764688257243,0.15445436,90110.0,90108.0,0.003]
[1764688257454,0.6835,90109.0,90108.0,0.003]
[1764688258553,0.6835,90109.0,90096.0,0.3608]
[1764688258747,0.6835,90109.0,90108.0,0.003]
[1764688259143,0.33023,90096.0,90095.0,0.00016644]
[1764688259647,0.6835,90087.0,90086.0,0.00027751]
[1764688259846,1.0443,90087.0,90086.0,0.00027751]
[1764688260246,0.3608,90092.0,90086.0,0.00027751]
[1764688260442,0.6835,90087.0,90086.0,0.00027751]
[1764688260646,0.6835,90070.0,90057.0,0.3608]
[1764688260846,0.6835,90055.0,90054.0,0.00013939]
[1764688261154,0.6835,90047.0,90030.0,0.3719069]
[1764688261351,1.0443,90047.0,90033.0,0.0111066]
[1764688261653,0.3608,90047.0,90036.0,0.0111062]
[1764688261835,0.00016655,90051.0,90050.0,0.63472]
[1764688262044,0.00030618,90051.0,90050.0,0.63472]
[1764688262250,0.00030618,90051.0,90047.0,0.3608]
[1764688262448,0.6835,90048.0,90029.0,0.4108]
[1764688262664,0.00010082,90047.0,90029.0,0.4108]
[1764688262952,0.15527409,90040.0,90029.0,0.4108]
[1764688263150,0.00012033,90039.0,90032.0,0.0111067]
[1764688263346,0.00014407,90038.0,90029.0,0.4108]
[1764688263651,1.05532,90030.0,90029.0,0.04377792]
[1764688263844,1.05532,90030.0,90012.0,0.3608]
[1764688264038,0.15527409,90022.0,90012.0,0.3608]
[1764688264245,1.50011952,90021.0,90012.0,0.3719092]
[1764688264450,1.86091952,90021.0,90006.0,0.00027776]
[1764688264842,0.15527409,90020.0,90006.0,0.01138766]
[1764688265052,0.15527409,90020.0,90006.0,0.00027776]
[1764688265258,0.15527409,90020.0,90010.0,0.0111094]
[1764688265548,1.50011952,90021.0,90020.0,0.6981583]
[1764688265951,1.50011952,90021.0,90020.0,0.68705]
[1764688266350,1.50011952,90021.0,90020.0,0.34494]
[1764688266548,1.50011952,90021.0,90020.0,0.68705]
[1764688267740,0.54056,90052.0,90025.0,0.0111076]
[1764688267943,0.20903684,90060.0,90049.0,0.0111046]
[1764688267944,0.63158533,90058.0,90049.0,0.0111046]
[1764688268152,0.63158533,90058.0,90045.0,0.3719051]
[1764688268352,0.3608,90053.0,90045.0,0.3608]
[1764688268652,0.3608,90053.0,90035.0,0.3608]
[1764688268653,0.69452,90046.0,90040.0,0.00016664]
[1764688268863,0.0111053,90044.0,90040.0,0.00016664]
[1764688269245,0.33863,90041.0,90040.0,0.00016664]
[1764688269440,4.489e-05,90045.0,90043.0,0.0111054]
[1764688269656,4.489e-05,90045.0,90044.0,0.34494]
[1764688270258,4.489e-05,90045.0,90040.0,0.00016664]
[1764688270460,4.489e-05,90045.0,90044.0,0.68705]
[1764688270953,0.00016664,90058.0,90057.0,0.6981537]
[1764688271159,0.00016664,90058.0,90057.0,1.4197537]
[1764688271456,0.3608,90087.0,90057.0,0.7216]
[1764688271648,0.3608,90087.0,90071.0,0.3608]
[1764688271855,0.0111015,90075.0,90071.0,0.3608]
[1764688272446,0.0111015,90075.0,90064.0,0.00016654]
[1764688272447,0.0111023,90069.0,90064.0,0.00016654]
[1764688272651,0.0111018,90073.0,90064.0,0.00016654]
[1764688272851,0.00016654,90082.0,90081.0,0.68705]
[1764688274260,0.5404,90127.0,90112.0,0.68705]
[1764688274467,0.0110954,90125.0,90112.0,0.68705]
[1764688274645,1.5,90124.0,90112.0,0.68705]
[1764688274850,0.0110956,90123.0,90112.0,0.34494]
[1764688275052,0.3718956,90123.0,90112.0,0.34494]
[1764688275250,0.3718956,90123.0,90106.0,0.3608]
[1764688275251,0.3608,90123.0,90108.0,0.00016644]
[1764688275456,0.20903684,90116.0,90108.0,0.00016644]
[1764688275762,1.5,90124.0,90119.0,0.34494]
[1764688276266,0.69452,90116.0,90115.0,0.3608]
[1764688276447,0.69452,90109.0,90108.0,0.00016644]
[1764688276650,0.69452,90109.0,90094.0,0.3608]
[1764688276651,0.90112,90109.0,90094.0,0.3608]
[1764688277063,0.54032,90109.0,90094.0,0.3608]
[1764688277261,0.54032,90109.0,90105.0,0.3608]
[1764688277447,0.3608,90119.0,90105.0,0.3608]
[1764688277650,0.20903684,90120.0,90114.0,0.3608]
[1764688278060,0.69452,90115.0,90114.0,0.3608]
[1764688278267,0.69452,90115.0,90106.0,0.3108]
[1764688278467,0.7056166,90115.0,90106.0,0.3108]
[1764688278659,0.69452,90115.0,90106.0,0.3108]
[1764688278862,0.33863,90107.0,90106.0,0.3108]
[1764688279067,0.33863,90107.0,90103.0,0.00016644]
[1764688279456,0.35589,90106.0,90105.0,0.003]
[1764688279664,0.7056177,90106.0,90105.0,0.003]
[1764688280068,0.69452,90098.0,90074.0,0.3608]
[1764688280258,0.69452,90098.0,90070.0,0.3608]
[1764688280259,0.0111005,90083.0,90070.0,0.3608]
[1764688280564,0.0111008,90081.0,90060.0,0.3719032]
[1764688280751,0.3608,90076.0,90060.0,0.3719032]
[1764688280954,0.0111015,90075.0,90060.0,0.3719032]
[1764688281157,0.00016654,90077.0,90076.0,0.68705]
[1764688281753,0.3608,90128.0,90109.0,0.0110973]
[1764688282061,0.00027739,90126.0,90120.0,0.0110958]
[1764688282254,1.5,90125.0,90120.0,0.3718958]
[1764688282464,1.5,90125.0,90120.0,0.3608]
[1764688283967,0.00027739,90126.0,90124.0,0.68705]
[1764688284172,0.00027739,90126.0,90125.0,0.34494]
[1764688284769,0.00027739,90126.0,90125.0,0.68705]
[1764688285266,0.3608,90142.0,90122.0,0.0110956]
[1764688285267,0.3608,90165.0,90131.0,0.68705]
[1764688285466,0.0110917,90155.0,90147.0,0.70574]
[1764688285670,0.0110922,90151.0,90147.0,0.70574]
[1764688285972,0.3608,90165.0,90147.0,0.68705]
[1764688285973,1.5,90148.0,90147.0,0.68705]
[1764688286861,1.5,90148.0,90147.0,0.68905]
[1764688287170,0.00016644,90157.0,90156.0,0.68705]
[1764688287366,0.33879644,90157.0,90156.0,0.3608]
[1764688287560,2.19468644,90157.0,90156.0,0.3608]
[1764688287761,2.19468644,90157.0,90147.0,0.002]
[1764688288662,0.33863,90145.0,90138.0,0.47479004]
[1764688288858,1.50016644,90157.0,90138.0,0.47479004]
[1764688289074,1.50016644,90157.0,90146.0,0.3608]
[1764688289271,1.50016644,90157.0,90147.0,0.001]
[1764688289459,1.50016644,90157.0,90155.0,0.0110915]
[1764688290164,1.50016644,90157.0,90154.0,0.3608]
[1764688290471,0.33863,90156.0,90154.0,0.3608]
[1764688290674,1.50016644,90157.0,90154.0,0.3718917]
[1764688291463,0.3608,90174.0,90173.0,0.0110894]
[1764688291668,0.00059,90189.0,90182.0,0.68705]
[1764688291864,0.00059,90189.0,90183.0,0.3608]
[1764688292173,1.5,90188.0,90183.0,0.3608]
[1764688292577,1.5,90188.0,90184.0,0.0110881]
[1764688293173,1.5,90188.0,90187.0,0.693]
[1764688294262,1.5,90188.0,90183.0,0.003]
[1764688294470,0.70831,90184.0,90183.0,0.003]
[1764688294663,0.70831,90184.0,90176.0,0.00016635]
[1764688295070,0.00059,90189.0,90188.0,0.7135076]
[1764688295271,0.00059,90189.0,90183.0,0.003]
[1764688295775,1.50059,90189.0,90181.0,0.3608]
[1764688296171,1.50059,90189.0,90183.0,0.001]
[1764688296364,0.70831,90184.0,90183.0,0.001]
[1764688296565,1.50059,90189.0,90183.0,0.003]
[1764688296768,0.34946,90184.0,90183.0,0.003]
[1764688296963,1.50059,90189.0,90183.0,0.003]
[1764688297161,1.50059,90189.0,90184.0,0.0110881]
[1764688297461,1.50059,90189.0,90183.0,0.003]
[1764688297462,1.50059,90189.0,90183.0,0.0130882]
[1764688297666,1.50059,90189.0,90183.0,0.002]
[1764688297876,0.70831,90183.0,90182.0,0.3608]
[1764688298077,1.50059,90189.0,90176.0,0.00016635]
[1764688298078,0.3608,90186.0,90176.0,0.00016635]
[1764688298575,0.3608,90186.0,90184.0,0.001]
[1764688298576,0.92295,90185.0,90184.0,0.001]
[1764688298967,0.34946,90177.0,90176.0,0.00016635]
[1764688299167,0.70831,90177.0,90176.0,0.00016635]
[1764688299374,1.50059,90189.0,90177.0,0.70242]
[1764688299970,0.3608,90184.0,90179.0,0.0110886]
[1764688300363,0.3608,90184.0,90176.0,0.00316635]
[1764688300566,0.70831,90177.0,90176.0,0.00216635]
[1764688300966,0.70831,90171.0,90170.0,0.32405615]
[1764688302373,0.70831,90171.0,90161.0,0.00016635]
[1764688302886,0.70831,90171.0,90162.0,0.0110908]
[1764688303081,0.34946,90165.0,90164.0,0.3608]
[1764688303276,0.34946,90165.0,90164.0,0.3518]
[1764688303472,0.53908635,90175.0,90164.0,0.3518]
[1764688304475,0.34946,90171.0,90170.0,0.002]
[1764688304673,0.70831,90171.0,90170.0,0.002]
[1764688304874,0.70831,90170.0,90169.0,0.0110898]
[1764688305072,0.70831,90170.0,90165.0,0.1027]
[1764688305384,0.53908635,90175.0,90145.0,0.3608]
[1764688305385,0.70831,90165.0,90145.0,0.3608]
[1764688305576,0.3608,90157.0,90145.0,0.3608]
[1764688305879,0.3608,90157.0,90150.0,0.0110922]
[1764688306080,0.53884,90164.0,90153.0,0.3608]
[1764688306269,0.70831,90158.0,90157.0,0.0110913]
[1764688306473,0.70831,90158.0,90154.0,0.0110917]
[1764688306674,0.70831,90158.0,90153.0,0.3608]
[1764688306873,0.70831,90158.0,90154.0,0.0110917]
[1764688307686,0.70831,90158.0,90153.0,0.3608]
[1764688307877,0.34946,90149.0,90148.0,0.00016635]
[1764688308177,0.70831,90149.0,90148.0,0.00016635]
[1764688308377,0.34946,90149.0,90148.0,0.00016635]
[1764688308581,0.34946,90155.0,90151.0,0.011092]
[1764688308781,0.34946,90155.0,90148.0,0.00016635]
[1764688308984,0.001,90158.0,90155.0,0.0110916]
[1764688309471,0.001,90158.0,90157.0,0.70242]
[1764688310381,0.53872,90166.0,90164.0,0.0110904]
[1764688310580,0.53872,90166.0,90165.0,0.35436]
[1764688311381,0.3608,90181.0,90165.0,0.35436]
[1764688311382,0.3608,90181.0,90165.0,0.70242]
[1764688311583,0.20832198,90180.0,90161.0,0.3718909]
[1764688311773,0.70831,90162.0,90161.0,0.3608]
[1764688311973,0.3608,90172.0,90161.0,0.3608]
[1764688312174,0.3608,90172.0,90171.0,0.0110897]
[1764688312377,0.3608,90172.0,90168.0,0.0110899]
[1764688312777,0.70831,90174.0,90173.0,0.0110894]
[1764688313175,0.09064783,90175.0,90173.0,0.3654494]
[1764688313372,0.09064783,90175.0,90174.0,0.70242]
[1764688313373,0.00016635,90175.0,90174.0,0.70242]
[1764688314280,0.00116635,90175.0,90174.0,0.70242]
[1764688314680,0.00116635,90175.0,90174.0,0.35436]
[1764688315198,0.00116635,90175.0,90174.0,0.70242]
[1764688316392,0.00116635,90175.0,90174.0,1.20242]
[1764688320004,0.00116635,90175.0,90174.0,0.70242]
[1764688320391,0.00116635,90175.0,90174.0,0.90096]
[1764688320587,0.05932382,90199.0,90188.0,0.9120476]
[1764688320788,0.00059,90189.0,90188.0,1.2728476]
[1764688321183,0.00059,90189.0,90188.0,1.6336476]
[1764688321483,1.5,90205.0,90204.0,0.7135056]
[1764688321692,1.5,90205.0,90204.0,1.0743056]
[1764688321997,1.5,90205.0,90195.0,0.00016635]
[1764688321998,0.70831,90196.0,90195.0,0.00016635]
[1764688322596,0.67499,90189.0,90188.0,0.3608]
[1764688322893,0.67499,90189.0,90164.0,0.03813684]
[1764688322894,0.65552,90173.0,90158.0,0.02873017]
[1764688323099,0.20983,90188.0,90159.0,0.01733833]
[1764688323100,0.20832198,90170.0,90159.0,0.01733833]
[1764688323285,0.20983,90174.0,90163.0,0.32635]
[1764688323599,0.00016635,90178.0,90177.0,0.65971]
[1764688324185,0.00016635,90178.0,90173.0,0.3608]
[1764688324186,0.20832198,90200.0,90195.0,0.0110866]
[1764688324390,0.05932382,90210.0,90193.0,0.3608]
[1764688324391,1.5,90205.0,90193.0,0.3608]
[1764688324591,0.32999,90203.0,90202.0,0.0110858]
[1764688324788,1.5,90205.0,90202.0,0.3374358]
[1764688324989,1.5,90205.0,90204.0,0.65971]
[1764688325384,1.5,90205.0,90204.0,1.02051]
[1764688326193,1.5,90205.0,90204.0,0.3608]
[1764688326904,1.506,90205.0,90204.0,0.6982356]
[1764688327105,1.506,90205.0,90204.0,1.0315956]
[1764688327309,1.506,90205.0,90204.0,0.3608]
[1764688327891,1.506,90205.0,90204.0,1.02051]
[1764688328499,1.506,90205.0,90204.0,0.3608]
[1764688328811,1.506,90205.0,90201.0,0.65971]
[1764688328812,0.006,90205.0,90201.0,0.65971]
[1764688329101,0.05932382,90247.0,90245.0,0.65971]
[1764688329300,0.05932382,90255.0,90245.0,0.65971]
[1764688329498,0.05932382,90258.0,90256.0,0.8734392]
[1764688329704,0.15525304,90270.0,90260.0,0.65971]
[1764688329901,0.538,90273.0,90266.0,0.0110779]
[1764688330221,0.3608,90270.0,90256.0,0.20281621]
[1764688330394,0.15525304,90266.0,90256.0,0.20281621]
[1764688330591,0.007,90258.0,90257.0,0.6707891]
[1764688331100,0.007,90258.0,90256.0,0.20381621]
[1764688331101,0.3608,90260.0,90256.0,0.00016621]
[1764688331301,0.308,90257.0,90256.0,0.00016621]
[1764688331504,0.616,90257.0,90256.0,0.00016621]
[1764688332501,0.3599,90260.0,90257.0,0.0110791]
[1764688332704,0.003,90258.0,90257.0,0.0110791]
[1764688332906,0.54084,90258.0,90257.0,0.6707891]
[1764688333202,0.3608,90281.0,90256.0,0.20281621]
[1764688333203,0.15525304,90280.0,90256.0,0.20281621]
[1764688333402,0.15525304,90280.0,90273.0,0.6707871]
[1764688333604,0.3608,90281.0,90273.0,0.6707871]
[1764688334108,1e-08,90274.0,90273.0,1.0315871]
[1764688334703,0.0002769,90286.0,90285.0,0.6707857]
[1764688336812,0.3608,90323.0,90317.0,0.65971]
[1764688337308,0.3608,90323.0,90314.0,0.011072]
[1764688337309,0.3608,90336.0,90325.0,0.65971]
[1764688337499,0.3608,90336.0,90322.0,0.0110711]
[1764688337500,0.3608,90347.0,90342.0,0.0110686]
[1764688337702,1.5,90346.0,90345.0,0.65971]
[1764688337901,0.3608,90357.0,90356.0,0.32635]
[1764688338201,0.3608,90375.0,90374.0,0.65971]
[1764688338508,0.3608,90382.0,90365.0,0.3608]
[1764688338707,0.15525304,90384.0,90365.0,0.3608]
[1764688338708,0.00016602,90384.0,90371.0,0.0110651]
[1764688338910,0.00016602,90384.0,90383.0,0.65971]
[1764688339209,0.00016602,90384.0,90378.0,0.20265]
[1764688339210,0.00027653,90406.0,90405.0,0.65971]
[1764688339408,0.3608,90445.0,90444.0,0.32635]
[1764688339604,0.37212424,90445.0,90444.0,0.32635]
[1764688339805,0.37212424,90445.0,90444.0,0.65971]
[1764688340006,0.34504826,90445.0,90444.0,0.65971]
[1764688341216,0.089877,90478.0,90444.0,0.65971]
[1764688341217,0.3608,90513.0,90485.0,0.65971]
[1764688341402,0.3608,90523.0,90486.0,0.20265]
[1764688341710,0.3608,90523.0,90485.0,0.3608]
[1764688341711,0.3608,90498.0,90485.0,0.3608]
[1764688342005,0.00027665,90491.0,90485.0,0.3108]
[1764688342207,0.3608,90517.0,90499.0,0.32635]
[1764688342208,0.08631131,90510.0,90499.0,0.32635]
[1764688342412,0.51605304,90509.0,90495.0,0.36096582]
[1764688342612,0.51605304,90509.0,90495.0,0.00016582]
[1764688342613,0.3608,90498.0,90495.0,0.00016582]
[1764688342812,0.3608,90498.0,90497.0,0.65971]
[1764688343121,0.35303423,90549.0,90528.0,0.20265]
[1764688343302,0.35303423,90549.0,90535.0,0.3608]
[1764688343611,0.3608,90557.0,90551.0,0.20265]
[1764688344215,1.5,90556.0,90551.0,0.20265]
[1764688344415,0.3608,90557.0,90551.0,0.20265]
[1764688344416,0.34407665,90557.0,90551.0,0.20265]
[1764688344600,0.34392909,90557.0,90551.0,0.20265]
[1764688345006,0.3608,90569.0,90557.0,0.0110424]
[1764688345314,4.0,90600.0,90560.0,0.3608]
[1764688345315,0.3608,90585.0,90560.0,0.3608]
[1764688345516,0.3608,90585.0,90574.0,0.3608]
[1764688345716,0.3608,90595.0,90575.0,0.0110402]
[1764688345901,0.3608,90595.0,90577.0,0.0110399]
[1764688346107,0.3608,90595.0,90582.0,0.3608]
[1764688346303,2.65952,90600.0,90586.0,0.3608]
[1764688346507,1.32988245,90600.0,90599.0,0.3608]
[1764688346705,0.76047895,90600.0,90599.0,0.3608]
[1764688346916,0.76047895,90600.0,90599.0,0.7608]
[1764688347099,0.3608,90642.0,90599.0,0.7608]
[1764688347100,7e-08,90606.0,90599.0,0.7708]
[1764688347301,7e-08,90606.0,90605.0,0.3608]
[1764688347802,0.82780007,90606.0,90605.0,0.3608]
[1764688348011,0.82780007,90606.0,90599.0,0.5]
[1764688348207,0.82784,90605.0,90599.0,0.47461648]
[1764688348408,0.55188,90605.0,90600.0,0.0110371]
[1764688348704,0.55188,90605.0,90603.0,0.0110368]
[1764688348904,0.3608,90664.0,90602.0,0.3608]
[1764688349115,0.00012,90645.0,90617.0,0.3608]
[1764688349419,0.29122708,90660.0,90615.0,0.00016553]
[1764688349420,0.3608,90665.0,90639.0,0.3608]
[1764688349612,0.3608,90665.0,90643.0,0.00016553]
[1764688349914,0.20983,90672.0,90661.0,0.3608]
[1764688349915,1.5,90664.0,90661.0,0.3608]
[1764688350117,1.5,90664.0,90653.0,0.3608]
[1764688350416,1.77596,90664.0,90653.0,0.3608]
[1764688350620,0.3608,90695.0,90663.0,0.3608]
[1764688350813,0.3608,90695.0,90654.0,0.4]
[1764688350814,0.3608,90718.0,90681.0,0.7216]
[1764688351014,0.3608,90699.0,90688.0,0.00016544]
[1764688351623,0.0550864,90764.0,90688.0,0.00016544]
[1764688351624,0.3608,90719.0,90698.0,0.3608]
[1764688351806,0.3608,90719.0,90706.0,0.3608]
[1764688352004,0.27596,90719.0,90706.0,0.3608]
[1764688352211,1.5,90718.0,90714.0,0.3608]
[1764688352414,0.3608,90716.0,90688.0,0.0551323]
[1764688352621,0.50105708,90750.0,90707.0,0.00016544]
[1764688352819,0.21434,90714.0,90696.0,0.3608]
[1764688353023,0.0551198,90709.0,90674.0,0.47461]
[1764688353214,0.0110272,90682.0,90674.0,0.44949635]
[1764688353521,0.3608,90675.0,90674.0,0.44949635]
[1764688353719,0.89936,90679.0,90674.0,0.44949635]
[1764688354020,0.0110286,90671.0,90667.0,0.00016544]
[1764688354223,0.0110286,90671.0,90590.0,0.0551917]
[1764688354224,0.20192,90666.0,90644.0,0.3608]
[1764688354417,0.3608,90660.0,90641.0,0.3608]
[1764688354621,0.65202708,90651.0,90641.0,0.3608]
[1764688354815,0.20192,90636.0,90631.0,0.00013806]
[1764688355520,0.00016544,90643.0,90632.0,0.0110332]
[1764688355723,0.002,90660.0,90631.0,0.00013806]
[1764688355724,0.002,90660.0,90652.0,0.0110307]
[1764688355915,0.002,90660.0,90656.0,0.3608]
[1764688356116,0.002,90660.0,90648.0,0.3608]
[1764688356323,0.002,90660.0,90634.0,0.3608]
[1764688356324,0.11033447,90659.0,90634.0,0.3608]
[1764688356507,0.002,90660.0,90634.0,0.3608]
[1764688356713,0.00016383,90656.0,90653.0,0.3608]
[1764688357320,0.00016383,90656.0,90638.0,0.00016544]
[1764688357321,0.3608,90654.0,90638.0,0.00016544]
[1764688357522,0.3608,90639.0,90638.0,0.00016544]
[1764688357828,0.29122708,90650.0,90636.0,0.3608]
[1764688358123,0.29122708,90650.0,90631.0,0.00113806]
[1764688358124,0.3608,90640.0,90631.0,0.00113806]
[1764688358327,0.20192,90636.0,90631.0,0.00113806]
[1764688358525,0.20192,90636.0,90617.0,0.3608]
[1764688358725,0.53888,90635.0,90626.0,0.3608]
[1764688358927,0.20208544,90636.0,90626.0,0.3608]
[1764688359224,0.00016544,90636.0,90635.0,0.3608]
[1764688359430,0.00016544,90636.0,90635.0,0.3718329]
[1764688359616,0.29122708,90670.0,90635.0,0.7608]
[1764688359818,0.29122708,90670.0,90660.0,0.3608]
[1764688360017,0.29122708,90670.0,90660.0,0.3718298]
[1764688360235,0.29122708,90670.0,90660.0,0.3608]
[1764688360416,0.0110299,90660.0,90632.0,0.3608]
[1764688360724,0.3608,90652.0,90637.0,0.00016544]
[1764688360927,5.166e-05,90651.0,90649.0,0.3608]
[1764688361224,5.166e-05,90651.0,90637.0,0.00016544]
[1764688361430,5.166e-05,90651.0,90645.0,0.3608]
[1764688361628,5.166e-05,90651.0,90646.0,0.0110315]
[1764688362221,5.166e-05,90651.0,90645.0,0.3608]
[1764688362421,5.166e-05,90651.0,90650.0,0.3608]
[1764688362619,0.0110257,90694.0,90650.0,0.3608]
[1764688362620,0.3608,90691.0,90670.0,0.0110286]
[1764688362823,0.3608,90691.0,90672.0,0.0110283]
[1764688363029,0.53888,90689.0,90671.0,0.3718285]
[1764688363423,0.53888,90689.0,90671.0,0.3608]
[1764688363626,0.0110291,90667.0,90641.0,0.3608]
[1764688363823,0.29122708,90681.0,90628.0,0.3608]
[1764688363824,0.20192,90636.0,90628.0,0.3608]
[1764688364228,0.20192,90636.0,90600.0,0.0905]
[1764688364229,0.3608,90629.0,90615.0,0.3608]
[1764688364622,0.3608,90619.0,90604.0,0.35996553]
[1764688364828,0.3608,90628.0,90606.0,0.0110364]
[1764688365132,0.3608,90628.0,90600.0,0.0905]
[1764688365133,0.76848,90628.0,90615.0,0.0110353]
[1764688365331,0.76848,90628.0,90617.0,0.5]
[1764688365831,2e-08,90629.0,90627.0,0.0110339]
[1764688366026,0.00016553,90631.0,90627.0,0.0110339]
[1764688366432,0.00016553,90631.0,90625.0,0.3608]
[1764688366637,0.3608,90628.0,90613.0,0.00016553]
[1764688367031,0.3628,90628.0,90613.0,0.00016553]
[1764688367233,0.002,90628.0,90621.0,0.0110346]
[1764688367530,0.002,90628.0,90623.0,0.0110343]
[1764688367755,0.00016553,90631.0,90621.0,0.3608]
[1764688367756,0.00016553,90631.0,90622.0,0.0110344]
[1764688367927,0.002,90628.0,90627.0,0.0110339]
[1764688368129,0.002,90628.0,90622.0,0.0110344]
[1764688368326,0.002,90628.0,90621.0,0.3608]
[1764688368528,0.53832,90658.0,90649.0,0.0110311]
[1764688368734,0.53832,90658.0,90645.0,0.3608]
[1764688369037,0.53852,90661.0,90657.0,0.0110301]
[1764688369342,0.53852,90661.0,90653.0,0.3608]
[1764688369640,0.53852,90661.0,90653.0,0.3718306]
[1764688369935,0.53852,90661.0,90653.0,0.3608]
[1764688370231,0.3608,90657.0,90648.0,0.00016553]
[1764688370441,0.00016553,90666.0,90665.0,0.0110292]
[1764688370634,0.00016553,90666.0,90665.0,0.3718292]
[1764688370831,0.00016553,90666.0,90658.0,0.01103]